Cogmind - Beta 14 @@@ ROGUE MODE // 2024.08.31 @ 19:15:28 Player: VR-DUX Result: Destroyed by Y-45 Defender with Beam Rifle Performance ------------- Evolutions (1) 500 Regions Visited (3) 600 Robots Destroyed (75) 375 Value Destroyed (1743) 1743 Prototype IDs (0) 0 Alien Tech Used (0) 0 Bonus (80) 80 TOTAL SCORE: 3298 Bonus ------- High Alert Combat Kills 80 Cogmind --------- Core Integrity 0/400 Matter 300/300 Energy 265/265 System Corruption 1% Temperature Cool (9) Movement Treading (160) Location -9/Storage Parts ------- > --- POWER (1) -------- Improved Ion Engine > --- PROPULSION (3) --- Light Treads Light Treads Wheel > --- UTILITY (3) ------ Improved Heat Sink Large Storage Unit Signal Interpreter > --- WEAPON (2) ------- Ion Cannon Shotgun > --- INVENTORY (15) --- Ion Engine Nuclear Core Light Treads VTOL Module VTOL Module VTOL Module VTOL Module Medium Storage Unit Medium Matter Pod (100) Large Matter Pod (150) Sensor Array Hacking Suite Ion Cannon Maul Peak State ------------ > --- POWER ------------ Nuclear Core > --- PROPULSION ------- Light Treads Improved Treads Wheel > --- UTILITY ---------- Large Storage Unit Medium Matter Pod System Shield > --- WEAPON ----------- Ion Cannon Heavy Assault Rifle > --- INVENTORY -------- Ion Engine Wheel Wheel VTOL Module VTOL Module VTOL Module VTOL Module Medium Storage Unit Large Matter Pod Sensor Array Signal Interpreter Hacking Suite Light EM Pulse Cannon Ion Cannon Maul [Rating: 19] Favorites ----------- Power Ion Engine Engine Ion Engine Power Core Nuclear Core Propulsion Light Treads Treads Light Treads Leg Aluminum Leg Wheel Wheel Utility Large Storage Unit Device Structural Scanner Storage Large Storage Unit Processor Signal Interpreter Hackware System Shield Protection Hardened Light Armor Plating Weapon Light Assault Rifle Energy Gun Small Laser Energy Cannon Ion Cannon Ballistic Gun Light Assault Rifle Special Weapon Mining Laser Build | -11 -10 -9 -9 ------- Run | Yrd Mat Mat Sto Slots Evolved 2 | . . 2 . Power . | . . . . Propulsion 1 | . . 1 . Utility 1 | . . 1 . Weapon . | . . . . Parts Attached 56 | 1 23 26 6 Power 7 | . 3 3 1 Engine 6 | . 3 2 1 Core 1 | . . 1 . Reactor . | . . . . Propulsion 13 | . 5 5 3 Treads 10 | . 5 2 3 Leg . | . . . . Wheel 3 | . . 3 . Hover . | . . . . Flight . | . . . . Utility 15 | 1 7 6 1 Device 5 | 1 1 2 1 Storage 4 | . 2 2 . Processor 2 | . 1 1 . Hackware 1 | . . 1 . Protection 3 | . 3 . . Artifact . | . . . . Weapon 21 | . 8 12 1 Energy Gun 6 | . 4 2 . Energy Cannon 4 | . . 4 . Ballistic Gun 9 | . 3 5 1 Ballistic Cannon . | . . . . Launcher . | . . . . Special Weapon 2 | . 1 1 . Impact Weapon . | . . . . Slashing Weapon . | . . . . Piercing Weapon . | . . . . Special Melee Weapon . | . . . . Unidentified Prototypes . | . . . . Parts Lost 14 | . 3 10 1 Power 3 | . 1 2 . Propulsion 5 | . 1 4 . Utility 3 | . . 2 1 Weapon 3 | . 1 2 . Highest Loss Streak 6 | . 2 6 1 To Critical Strikes . | . . . . Average Slot Usage (%) 95 | . 98 90 94 Engine 10 | . 13 6 5 Core 1 | . . 3 5 Treads 21 | . 23 18 22 Leg 2 | . 4 . . Wheel 4 | . . 9 11 Device 4 | . 4 5 2 Storage 14 | . 14 15 11 Processor 2 | . 1 . 11 Hackware 1 | . . 3 3 Protection 5 | . 7 3 . Energy Gun 3 | . 4 3 . Energy Cannon 3 | . . 5 11 Ballistic Gun 17 | . 21 12 11 Peak Build Rating 19 | 7 10 19 19 Average Rating 11 | 6 9 13 17 On Entrance 10 | 6 7 10 19 Naked Turns . | . . . . Heaviest Build 38 | 13 35 38 37 Greatest Support 40 | 20 40 40 40 Greatest Overweight (x) 7 | . 1 7 3 Average Overweight (x) . | . . 2 1 Largest Inventory Capacity 15 | 8 15 15 15 Average Capacity 14 | 8 13 15 15 Most Carried 15 | 7 15 15 15 Average Carried 12 | 6 11 14 14 Final Capacity 15 | 8 15 15 15 Final Carried 15 | 7 14 15 14 Class Distribution -------------------- 84% | Mutant 15% | Scavenger-Mutant Dominant Class ---------------- Mutant | -10/Materials Mutant | -9/Materials Mutant | -9/Storage Resources | -11 -10 -9 -9 ----------- Run | Yrd Mat Mat Sto Matter Collected 1630 | 222 449 773 186 Remotely . | . . . . Salvage Created 2355 | 130 547 1175 503 Parts 179 | 8 45 78 48 Haulers Intercepted 4 | . 1 1 2 Recyclers Shooed 2 | . 1 1 . Parts Field Recycled . | . . . . Retrieved Matter . | . . . . Parts Self-Destructed . | . . . . Prevented . | . . . . Kills | -11 -10 -9 -9 ------- Run | Yrd Mat Mat Sto Combat Hostiles Destroyed 53 | . 17 26 10 Guns 37 | . 16 15 6 Cannons 15 | . . 11 4 Classes Destroyed 11 | 2 6 3 . Worker 2 | . . 2 . Builder 6 | . 2 2 2 Tunneler 2 | 2 . . . Hauler 4 | . 1 1 2 Recycler 1 | 1 . . . Mechanic 2 | . . 2 . Operator 2 | . 1 . 1 Watcher 3 | . 1 2 . Swarmer 15 | . 9 3 3 Grunt 32 | . 8 20 4 Sentry 6 | . . 3 3 Best Kill Streak 6 | 1 3 6 6 Combat Bots Only 6 | . 3 6 4 Max Kills in Single Turn 2 | 1 1 2 1 Gunslinging . | . . . . Exploded . | . . . . Melee . | . . . . Uniques/NPCs Destroyed . | . . . . Combat | -11 -10 -9 -9 -------- Run | Yrd Mat Mat Sto Hostile Shots Fired 332 | . 122 160 50 Missed 100 | . 34 51 15 Damage Taken 2701 | . 894 1405 402 Core 549 | . 137 293 119 Absorbed by Shields . | . . . . Core Remaining (%) 72 | 100 45 . . Volleys Fired 231 | 13 100 86 32 Largest 2 | 2 2 2 2 Hottest 100 | 60 100 100 83 Shots Fired 447 | 26 186 171 64 Gun 369 | 26 180 131 32 Cannon 71 | . . 39 32 Launcher . | . . . . Special 7 | . 6 1 . Kinetic 295 | 13 146 104 32 Thermal 132 | 13 40 47 32 Explosive . | . . . . Electromagnetic 20 | . . 20 . Robot Hit Streak 15 | 3 8 15 7 Robot Miss Streak 8 | 3 8 4 2 Penetration Max . | . . . . Secondary Targets 8 | . 7 1 . Max Gunslinging Chain 1 | . 1 1 . Shots Hit Robots 254 | 11 90 115 38 Core Hits 122 | 6 37 59 20 Critical Kills 1 | . 1 . . Critical Parts Destroyed 1 | . . 1 . Critical Strikes 2 | . 1 1 . Destroy 2 | . 1 1 . Melee Attacks . | . . . . Impact . | . . . . Slashing . | . . . . Piercing . | . . . . Sneak Attacks . | . . . . Combat Hostiles . | . . . . Follow-up Attacks . | . . . . Damage Inflicted 3818 | 113 926 2038 741 Guns 2712 | 113 919 1391 289 Cannons 1099 | . . 647 452 Explosions . | . . . . Melee . | . . . . Ramming 7 | . 7 . . Kinetic 2242 | 60 709 1184 289 Thermal 1190 | 53 210 475 452 Explosive . | . . . . Electromagnetic 379 | . . 379 . Impact . | . . . . Slashing . | . . . . Piercing . | . . . . Highest Corruption 1 | . . . 1 Average Corruption 1 | . . . 1 Corruption Purged . | . . . . Corruption Blocked . | . . . . Effects 4 | . . . 4 Message Errors 2 | . . . 2 Energy Discharges 1 | . . . 1 Data Loss (minor) 1 | . . . 1 Overload Shots . | . . . . Overflow Damage 2 | . . . 2 Projectiles 2 | . . . 2 Explosions . | . . . . Melee . | . . . . Knockbacks . | . . . . Impact . | . . . . Kinetic . | . . . . Secondary . | . . . . Self-Inflicted Damage 23 | . . . 23 Shots 1 | . . . 1 Rammed 1 | . 1 . . Targets Rammed 1 | . 1 . . Kicked . | . . . . Crushed . | . . . . Highest Temperature 380 | 40 380 252 141 Average Temperature 78 | 19 107 66 54 Received Heat Transfer 1074 | . 312 624 138 Effects 5 | . 4 1 . Shutdowns 1 | . 1 . . Energy Bleed 1 | . . 1 . Interference 2 | . 2 . . Matter Decay 1 | . 1 . . Siege Activations . | . . . . Robots Corrupted . | . . . . Combat Hostiles . | . . . . Parts Fried 1 | . . 1 . Impact Corruptions . | . . . . Robots Melted . | . . . . Combat Hostiles . | . . . . Parts Melted 1 | . 1 . . Heat Transferred 2135 | 125 450 857 703 Parts Sabotaged . | . . . . Parts Stolen . | . . . . Parts Stripped . | . . . . Power Chain Reactions . | . . . . Alert | -11 -10 -9 -9 ------- Run | Yrd Mat Mat Sto Peak Influence 567 | 15 251 567 540 Initial 176 | . 9 59 176 Average 217 | 8 129 332 369 Maximum Alert Level 2 | . 1 2 2 Low Security (%) 52 | 100 84 10 4 Level 1 34 | . 15 58 62 Level 2 13 | . . 30 33 Level 3 . | . . . . Level 4 . | . . . . Level 5 . | . . . . High Security . | . . . . Max Security . | . . . . Squads Dispatched 7 | . 2 3 2 Investigation 3 | . 1 1 1 Extermination . | . . . . Reinforcement 4 | . 1 2 1 Assault . | . . . . Garrison . | . . . . Intercept . | . . . . Searches Triggered . | . . . . Construction Impeded . | . . . . Haulers Reinforced . | . . . . Active Scanning Responses . | . . . . Cargo Convoy Interrupts . | . . . . Stealth | -11 -10 -9 -9 --------- Run | Yrd Mat Mat Sto Distress Signals 4 | . 1 2 1 Communications Jammed . | . . . . Distress Signals . | . . . . Times Spotted 84 | . 31 40 13 Peak Tracking Total 9 | . 5 9 4 Tactical Retreats 1 | . 1 . . Traps | -11 -10 -9 -9 ------- Run | Yrd Mat Mat Sto Traps Triggered 5 | . 3 1 1 Indirectly . | . . . . Trap Hack Attempts . | . . . . Triggered . | . . . . Disarmed . | . . . . Reprogrammed . | . . . . Reused . | . . . . Traps Extracted . | . . . . Installed . | . . . . Triggered . | . . . . Machines | -11 -10 -9 -9 ---------- Run | Yrd Mat Mat Sto Machines Disabled 4 | . 1 1 2 Max in Single Turn 2 | . 1 1 2 Machines Repaired . | . . . . Machines Dismantled . | . . . . Machines Sabotaged . | . . . . Overloaded Fab Kills . | . . . . Hacking | -11 -10 -9 -9 --------- Run | Yrd Mat Mat Sto Machines Accessed 10 | . 2 4 4 Terminals 10 | . 2 4 4 Fabricators . | . . . . Repair Stations . | . . . . Recycling Units . | . . . . Scanalyzers . | . . . . Garrison Access . | . . . . Total Hacks 21 | . 3 9 9 Successful 7 | . 2 3 2 Failed 13 | . . 6 7 Catastrophic 5 | . . 2 3 Database Lockouts 1 | . 1 . . Manual 19 | . 7 7 5 Terminals 21 | . 3 9 9 Fabricators . | . . . . Repair Stations . | . . . . Recycling Units . | . . . . Scanalyzers . | . . . . Garrison Access . | . . . . Terminal Hacks 6 | . 2 2 2 Robot Analysis 3 | . 2 . 1 Level Access Points 2 | . . 2 . Recall Reinforcements 1 | . . . 1 Fabricator Hacks . | . . . . Repair Station Hacks . | . . . . Recycling Unit Hacks . | . . . . Scanalyzer . | . . . . Garrison Access Hacks . | . . . . Unauthorized Hacks 1 | . . 1 . Terminals 1 | . . 1 . Botnet 1 | . . 1 . Fabricators . | . . . . Repair Stations . | . . . . Recycling Units . | . . . . Scanalyzers . | . . . . Garrison Access . | . . . . Data Cores Recovered . | . . . . Used . | . . . . Hacking Detections 7 | . . 3 4 Full Trace Events 2 | . . . 2 Feedback Events 1 | . . . 1 Hackware Fried 1 | . . . 1 Feedback Blocked . | . . . . Robot Schematics Acquired . | . . . . Robots Built . | . . . . Authchips . | . . . . Time . | . . . . Total Robot Build Rating . | . . . . Part Schematics Acquired . | . . . . Parts Built . | . . . . Authchips . | . . . . Time . | . . . . Total Part Build Rating . | . . . . Parts Repaired . | . . . . Time . | . . . . Parts Recycled . | . . . . Recycled Matter . | . . . . Retrieved Matter . | . . . . Retrieved Components . | . . . . Parts Scanalyzed . | . . . . Part Schematics Acquired . | . . . . Parts Damaged . | . . . . Bothacking | -11 -10 -9 -9 ------------ Run | Yrd Mat Mat Sto Used RIF Installer . | . . . . Robots Hacked . | . . . . Non-combat . | . . . . Combat . | . . . . Robot Hacks Applied . | . . . . Relay Couplers Released . | . . . . Fabnet Peak Effective % . | . . . . Robots Rewired . | . . . . Allies Hacked . | . . . . Hacks Repelled . | . . . . Allies | -11 -10 -9 -9 -------- Run | Yrd Mat Mat Sto Total Allies . | . . . . Largest Group . | . . . . Highest-Rated Group . | . . . . Highest-Rated Ally . | . . . . Total Orders . | . . . . Ally Attacks . | . . . . Total Damage . | . . . . Kills . | . . . . Allies Corrupted . | . . . . Allies Melted . | . . . . Intel | -11 -10 -9 -9 ------- Run | Yrd Mat Mat Sto Robot Analysis Total 3 | . 2 . 1 Derelict Logs Recovered . | . . . . Drone Launches . | . . . . Drone Recoveries . | . . . . Exploration | -11 -10 -9 -9 ------------- Run | Yrd Mat Mat Sto Turns Passed 2806 | 104 1488 867 347 Spaces Moved 1337 | 55 741 416 125 Core 4 | . . 4 . Treads 733 | . 624 46 63 Legs 172 | 55 117 . . Wheels 428 | . . 366 62 Hover . | . . . . Flight . | . . . . Fastest Speed 110 | 120 120 110 125 Average Speed 148 | 120 153 132 181 Slowest Speed 400 | 120 240 400 240 Overloaded Moves . | . . . . Propulsion Burnouts . | . . . . Robots Hopped . | . . . . Cave-ins Triggered . | . . . . Exploration Rate (%) 44 | 4 95 50 28 Regions Visited 3 Branch Regions 1 Pre-discovered Areas . | . . . . Known Exits Taken 2 | . 1 1 . Unknown Exits Taken 1 | 1 . . . Scrap Searched . | . . . . Spaces Dug 5 | . 4 1 . Terrain Destroyed 20 | . 4 4 12 Melee . | . . . . Projectile 13 | . 4 4 5 AOE 7 | . . . 7 Terrain Rammed . | . . . . Walls Destroyed . | . . . . Machines Disabled . | . . . . Actions | -11 -10 -9 -9 --------- Run | Yrd Mat Mat Sto Total 1711 | 69 906 554 182 Wait 41 | . 20 9 12 Move 1334 | 54 740 415 125 Hop . | . . . . Pick Up 24 | 1 13 9 1 Fast Attach 22 | 1 9 8 4 Attach 12 | . 5 6 1 Detach . | . . . . Swap 22 | . 9 12 1 Drop 24 | . 9 9 6 Fire 231 | 13 100 86 32 Melee . | . . . . Ram . | . . . . Kick . | . . . . Crush 1 | . 1 . . Escape Stasis . | . . . . Rewire . | . . . . Trap . | . . . . Miscellaneous . | . . . . Route ------- -11/Scrapyard -10/Materials (discovered 5 exits: *Mat x3 / [*Min x2]) -9/Materials (discovered 5 exits: *Mat x3 / [*Min] / *Sto) -9/Storage History --------- Turn | Location | Event 10 | -11/Scrapyard | Discovered new exit (range 3) 105 | -11/Scrapyard | Entered Materials 247 | -10/Materials | Central database locked down 316 | -10/Materials | Build established: Mutant 525 | -10/Materials | Discovered new exit (range 6) 855 | -10/Materials | Discovered new exit (range 11) 876 | -10/Materials | Identified exit to Materials 939 | -10/Materials | Discovered new exit (range 10) 1132 | -10/Materials | Core integrity fell below 50% 1247 | -10/Materials | Discovered exit to Materials (range 11) 1567 | -10/Materials | Discovered exit to Materials (range 16) 1593 | -10/Materials | Entered another Materials area 1593 | -9/Materials | Evolved 2 slots: Propulsion x1, Utility x1 1609 | -9/Materials | Identified exit to Materials 1946 | -9/Materials | Lost 6 parts (3n1u2w) 1961 | -9/Materials | Core integrity fell below 50% 2015 | -9/Materials | Lost 4 parts (2p1n1u) 2318 | -9/Materials | Build established: Scavenger-Mutant 2356 | -9/Materials | Discovered new exit (range 15) 2394 | -9/Materials | Identified exit to Storage 2425 | -9/Materials | Discovered new exit (range 14) 2460 | -9/Materials | Entered Storage 2557 | -9/Storage | Core integrity fell below 20% 2567 | -9/Storage | System Shield fried by hacking feedback 2683 | -9/Storage | Build established: Mutant 2807 | -9/Storage | Destroyed by Y-45 Defender with Beam Rifle Last Messages --------------- 02768_ K-01 Serf collects debris. 02773_ Y-45 Defender destroyed. 02776_ K-01 Serf collects debris. 02776_ A-02 Transporter destroyed. 02781_ K-01 Serf collects debris. 02783_ Dropped Lgt. Treads. 02783_ R-06 Scavenger collects Lgt. Treads. 02784_ Acquired Lgt. Treads. 02784_ K-01 Serf collects debris. 02785_ Acquired 40 matter. 02787_ R-06 Scavenger collects Imp. Aluminum Leg. 02788_ K-01 Serf collects debris. 02791_ R-06 Scavenger collects Ion Engine. 02792_ Acquired 8 matter. 02793_ K-01 Serf collects debris. 02802_ Dropped Imp. Treads. 02802_ Acquired Lgt. Treads. 02803_ K-01 Serf collects debris. 02805_ Acquired 16 matter. 02807_ K-01 Serf collects debris. Map ----- +----------------------------------------------------+ | | | | | | | | | | | ???????????????##########????? | | ??????????????## [! ###### | | ??????????????# [ %""" # | | ??????????????## * """ # | | ?????????????### """ + | | ?????????????#"" # | | ?????????????#"T """ # | | ?????????????#"" """ ## |# | | ?????????????### """ ##=]!# | | ???????????????# ##[!]# | | ???????????????###########[[[# | | ??????""????????# #=%=# | | ??????"""???????# #=!*# | | ??????"""???????# !! # !# | | ??????? ???????# !! # # | | ########+######## !! + # | | # # + # # | | # # k # ##### | | # +^ # #???? | | # !#! != ; #???? | | # @/ k =w! r##########???? | | # !#[=[ =!= ### #??????? | | # """# %[%=! Y T ???? | | # """# =%######### ###????? | | # """# *#??????????##??????? | | # """# #??????????????????? | | # """# #??????????????????? | | # ??? " #??????????????????? | | #???# # #??????????????????? | | ????### #??????????????????? | | ??????# #??????????????????? | | ??????# #??????????????????? | | ??????# #??????????????????? | | ??????# +??????????????????? | | ??????# #??????????????????? | | ??????# ???????????????????? | | ?????????????????????????????? | | ?????????????????????????????? | | ?????????????????????????????? | | ?????????????????????????????? | | ?????????????????????????????? | | ?????????????????????????????? | | ?????????????????????????????? | | ?????????????????????????????? | | ?????????????????????????????? | +----------------------------------------------------+ Best States ------------- Heat Dissipation 42 Energy Generation 14 Energy Capacity 265 Matter Stores 400 Matter Capacity 400 Sight Range 16 Terrain Scan Range 14 Terrain Scan Density 10 Armor Coverage 150 Evasion (%) 55 Recoil Reduction 2 Defensive Hacking 10 Item Schematics ----------------- None Robot Schematics ------------------ None Fabricated ------------ Nothing Alien Tech Used ----------------- None Achievements -------------- None Challenges ------------ None Game ------ Seed SubatomicQuantumPick Manual? 0 Play Time 00:29:29 Cumulative 257.6 hours Start 2024.08.31 @ 18:47:00 End 2024.08.31 @ 19:15:28 Sessions 1 Manual Loads 0 Difficulty Rogue Special Mode None Game No. 149 Rogue 149 Adventurer 0 Explorer 0 Win Type - Total 7 Types 4/1/2/0/0/0/0/0/0 Lore% 43 Gallery% 57 Achievement% 55 Wizard Run 0 Options --------- Layout 1 ASCII 0 Keyboard 0 Movement Mouse Keybinds 0 Fullscreen 1 Font 20/SmallcapsGlow Map View 58x39 Zoom Use 18% Tactical HUD 1 Map Filters NONE Filters NONE Steam 1 RUN: 737ae827-7945-4b22-aa4a-45717db8eed6